fUST/lending_fUST_20240814
["ID","MTS","AMOUNT","RATE_DAILY","PERIOD"]
[334884592,1723626663846,-617.769582,0.000159,2]
[334884594,1723626663856,-151.0,0.000159,2]
[334884596,1723626663866,-449.188265,0.000159,2]
[334884598,1723626663876,-151.0,0.000159,2]
[334884600,1723626663887,-449.188265,0.000159,2]
[334884602,1723626663899,-186.748546,0.000159,2]
[334884604,1723626663908,-154.76012181,0.00016,2]
[334884606,1723626663918,-3000.0,0.00016,2]
[334884608,1723626663928,-1729.069544,0.00016,2]
[334884610,1723626663940,-3000.0,0.0001601,2]
[334884612,1723626663949,-3000.0,0.0001602,2]
[334884614,1723626663959,-3000.0,0.0001603,2]
[334884616,1723626663969,-3000.0,0.0001604,2]
[334884618,1723626663980,-3000.0,0.0001605,2]
[334884620,1723626663992,-3000.0,0.0001606,2]
[334884623,1723626664003,-151.0,0.0001607,2]
[334884624,1723626664012,-151.0,0.0001607,2]
[334884626,1723626664022,-151.0,0.0001607,2]
[334884628,1723626664031,-151.0,0.0001607,2]
[334884631,1723626664042,-151.0,0.0001607,2]
[334884633,1723626664052,-151.0,0.0001607,2]
[334884635,1723626664062,-1598.54212,0.0001607,2]
[334884637,1723626664073,-3000.0,0.0001607,2]
[334884639,1723626664084,-3000.0,0.0001608,2]
[334884641,1723626664094,-3000.0,0.0001609,2]
[334884643,1723626664103,-3000.0,0.000161,2]
[334884645,1723626664113,-3000.0,0.0001611,2]
[334884647,1723626664124,-3000.0,0.0001612,2]
[334884649,1723626664134,-3000.0,0.0001613,2]
[334884652,1723626664145,-3000.0,0.0001614,2]
[334884654,1723626664155,-3000.0,0.0001615,2]
[334884656,1723626664166,-3000.0,0.0001616,2]
[334884658,1723626664178,-151.0,0.00016164,2]
[334884660,1723626664191,-703.43,0.00016164,2]
[334884662,1723626664202,-229.326224,0.00016164,2]
[334884664,1723626664212,-229.326224,0.00016164,2]
[334884666,1723626664221,-515.13,0.00016164,2]
[334884668,1723626664231,-594.72,0.00016164,2]
[334884670,1723626664240,-500.0,0.00016164,2]
[334884672,1723626664250,-759.96,0.00016164,2]
[334884674,1723626664260,-500.0,0.00016164,2]
[334884676,1723626664269,-500.0,0.00016164,2]
[334884678,1723626664278,-490.95697721,0.00016164,2]
[334884680,1723626664288,-500.0,0.00016164,2]
[334884682,1723626664297,-500.0,0.00016164,2]
[334884684,1723626664306,-500.0,0.00016164,2]
[334884686,1723626664316,-403.06270854,0.00016164,2]
[334884688,1723626664327,-500.0,0.00016164,2]
[334884690,1723626664336,-1569.85,0.00016164,2]
[334884692,1723626664346,-500.0,0.00016164,2]
[334884694,1723626664355,-500.0,0.00016164,2]
[334884696,1723626664364,-500.0,0.00016164,2]
[334884698,1723626664374,-700.2,0.00016164,2]
[334884700,1723626664383,-500.0,0.00016164,2]
[334884702,1723626664394,-675.46,0.00016164,2]
[334884704,1723626664404,-824.21,0.00016164,2]
[334884706,1723626664416,-500.0,0.00016164,2]
[334884708,1723626664425,-1149.1,0.00016164,2]
[334884710,1723626664436,-1040.93,0.00016164,2]
[334884712,1723626664446,-500.0,0.00016164,2]
[334884714,1723626664456,-500.0,0.00016164,2]
[334884716,1723626664465,-500.0,0.00016164,2]
[334884718,1723626664474,-568.29,0.00016164,2]
[334884720,1723626664485,-500.0,0.00016164,2]
[334884722,1723626664496,-500.0,0.00016164,2]
[334884724,1723626664506,-623.16,0.00016164,2]
[334884726,1723626664516,-673.6,0.00016164,2]
[334884728,1723626664525,-639.99,0.00016164,2]
[334884730,1723626664535,-500.0,0.00016164,2]
[334884732,1723626664545,-500.0,0.00016164,2]
[334884735,1723626664557,-987.96,0.00016164,2]
[334884737,1723626664567,-500.0,0.00016164,2]
[334884739,1723626664577,-500.0,0.00016164,2]
[334884741,1723626664588,-672.95,0.00016164,2]
[334884743,1723626664597,-500.0,0.00016164,2]
[334884745,1723626664608,-500.0,0.00016164,2]
[334884747,1723626664618,-803.27,0.00016164,2]
[334884749,1723626664628,-553.37,0.00016164,2]
[334884751,1723626664637,-720.6,0.00016164,2]
[334884753,1723626664647,-1840.02,0.00016164,2]
[334884754,1723626664658,-500.0,0.00016164,2]
[334884755,1723626664668,-438.7600614,0.00016164,2]
[334884756,1723626664678,-500.0,0.00016164,2]
[334884757,1723626664690,-2032.76,0.00016164,2]
[334884758,1723626664699,-552.54,0.00016164,2]
[334884760,1723626664708,-657.65,0.00016164,2]
[334884762,1723626664719,-873.31,0.00016164,2]
[334884764,1723626664729,-13404.77,0.00016164,2]
[334884767,1723626664739,-741.21,0.00016164,2]
[334884769,1723626664751,-500.0,0.00016164,2]
[334884771,1723626664760,-583.12966411,0.00016164,2]
[334884773,1723626664771,-873.89,0.00016164,2]
[334884775,1723626664782,-703.76,0.00016164,2]
[334884777,1723626664792,-151.0,0.00016164,2]
[334884779,1723626664803,-151.0,0.00016164,2]
[334884781,1723626664812,-950.07,0.00016164,2]
[334884783,1723626664823,-500.0,0.00016164,2]
[334884785,1723626664833,-988.37,0.00016164,2]
[334884788,1723626664843,-4220.98,0.00016164,2]
[334884790,1723626664853,-500.0,0.00016164,2]
[334884791,1723626664862,-1416.324261,0.00016164,2]
[334884794,1723626664873,-500.0,0.00016164,2]
[334884796,1723626664884,-1416.324261,0.00016164,2]
[334884798,1723626664897,-938.85,0.00016164,2]
[334884800,1723626664907,-2942.22,0.00016164,2]
[334884802,1723626664917,-500.0,0.00016164,2]
[334884805,1723626664927,-500.0,0.00016164,2]
[334884806,1723626664937,-500.0,0.00016164,2]
[334884808,1723626664947,-747.56,0.00016164,2]
[334884811,1723626664956,-4778.59,0.00016164,2]
[334884813,1723626664966,-597.87,0.00016164,2]
[334884815,1723626664976,-3000.0,0.0001617,2]
[334884817,1723626664986,-3000.0,0.0001618,2]
[334884819,1723626664995,-3000.0,0.0001619,2]
[334884821,1723626665005,-3000.0,0.000162,2]
[334884823,1723626665015,-3000.0,0.0001621,2]
[334884825,1723626665024,-3000.0,0.0001622,2]
[334884827,1723626665035,-404.611122,0.0001622,2]
[334884829,1723626665044,-404.611122,0.0001622,2]
[334884831,1723626665054,-165.169005,0.0001622,2]
[334884833,1723626665064,-2275.453086,0.0001622,2]
[334884835,1723626665074,-2275.453086,0.0001622,2]
[334884837,1723626665083,-4523.690663,0.0001623,2]
[334884849,1723626665184,-242.207258,0.0001623,2]
[334884851,1723626665194,-242.207258,0.0001623,2]
[334884853,1723626665204,-276.281811,0.0001623,2]
[334884855,1723626665213,-276.281811,0.0001623,2]
[334884857,1723626665223,-1000.0,0.00016235,2]
[334884859,1723626665232,-1900.38300032,0.00016238,2]
[334884861,1723626665243,-1000.0,0.00016245,2]
[334884863,1723626665253,-150.0,0.00016293,2]
[334884865,1723626665265,-520.0,0.00016293,2]
[334884867,1723626665274,-1413.0,0.00016296,2]
[334884870,1723626665284,-250.0,0.00016421,2]
[334884871,1723626665293,-703.43,0.00016438,2]
[334884874,1723626665303,-515.13,0.00016438,2]
[334884876,1723626665312,-594.72,0.00016438,2]
[334884878,1723626665321,-500.0,0.00016438,2]
[334884880,1723626665330,-759.96,0.00016438,2]
[334884882,1723626665339,-500.0,0.00016438,2]
[334884884,1723626665349,-500.0,0.00016438,2]
[334884886,1723626665359,-500.0,0.00016438,2]
[334884888,1723626665368,-500.0,0.00016438,2]
[334884890,1723626665378,-200.0,0.00016438,2]
[334884892,1723626665388,-200.0,0.00016438,2]
[334884894,1723626665400,-200.0,0.00016438,2]
[334884896,1723626665409,-200.0,0.00016438,2]
[334884898,1723626665424,-200.0,0.00016438,2]
[334884900,1723626665435,-200.0,0.00016438,2]
[334884902,1723626665444,-200.0,0.00016438,2]
[334884905,1723626665454,-200.0,0.00016438,2]
[334884907,1723626665463,-241.58586052,0.00016438,2]
[334884909,1723626665473,-500.0,0.00016438,2]
[334884911,1723626665483,-500.0,0.00016438,2]
[334884913,1723626665496,-1569.85,0.00016438,2]
[334884915,1723626665506,-500.0,0.00016438,2]
[334884917,1723626665515,-500.0,0.00016438,2]
[334884919,1723626665527,-500.0,0.00016438,2]
[334884921,1723626665538,-700.2,0.00016438,2]
[334884923,1723626665548,-500.0,0.00016438,2]
[334884926,1723626665559,-675.46,0.00016438,2]
[334884928,1723626665570,-824.21,0.00016438,2]
[334884930,1723626665581,-500.0,0.00016438,2]
[334884932,1723626665592,-1149.1,0.00016438,2]
[334884934,1723626665603,-1040.93,0.00016438,2]
[334884936,1723626665613,-500.0,0.00016438,2]
[334884938,1723626665623,-500.0,0.00016438,2]
[334884940,1723626665633,-500.0,0.00016438,2]
[334884942,1723626665643,-568.29,0.00016438,2]
[334884944,1723626665652,-500.0,0.00016438,2]
[334884946,1723626665661,-500.0,0.00016438,2]
[334884948,1723626665671,-623.16,0.00016438,2]
[334884950,1723626665680,-673.6,0.00016438,2]
[334884952,1723626665691,-639.99,0.00016438,2]
[334884954,1723626665701,-500.0,0.00016438,2]
[334884956,1723626665710,-500.0,0.00016438,2]
[334884958,1723626665720,-987.96,0.00016438,2]
[334884960,1723626665729,-500.0,0.00016438,2]
[334884962,1723626665738,-500.0,0.00016438,2]
[334884964,1723626665747,-196.577417,0.00016438,2]
[334884966,1723626665757,-151.0,0.00016438,2]
[334884968,1723626665767,-672.95,0.00016438,2]
[334884970,1723626665776,-500.0,0.00016438,2]
[334884972,1723626665786,-639.62989186,0.00016438,2]
[334884974,1723626665796,-803.27,0.00016438,2]
[334884976,1723626665805,-2137.024966,0.00016438,2]
[334884978,1723626665815,-553.37,0.00016438,2]
[334884980,1723626665824,-2137.024966,0.00016438,2]
[334884982,1723626665835,-289.758776,0.00016438,2]
[334884984,1723626665844,-720.6,0.00016438,2]
[334884986,1723626665853,-1840.02,0.00016438,2]
[334884988,1723626665863,-500.0,0.00016438,2]
[334884990,1723626665873,-289.758776,0.00016438,2]
[334884992,1723626665883,-151.0,0.00016438,2]
[334884995,1723626665892,-500.0,0.00016438,2]
[334884997,1723626665902,-1518.615014,0.00016438,2]
[334884999,1723626665912,-2032.76,0.00016438,2]
[334885001,1723626665921,-552.54,0.00016438,2]
[334885003,1723626665932,-1518.615014,0.00016438,2]
[334885005,1723626665941,-657.65,0.00016438,2]
[334885007,1723626665951,-300.772827,0.00016438,2]
[334885009,1723626665960,-300.772827,0.00016438,2]
[334885011,1723626665969,-873.31,0.00016438,2]
[334885013,1723626665979,-13404.77,0.00016438,2]
[334885015,1723626665989,-741.21,0.00016438,2]
[334885017,1723626665998,-500.0,0.00016438,2]
[334885019,1723626666009,-873.89,0.00016438,2]
[334885021,1723626666018,-703.76,0.00016438,2]
[334885023,1723626666028,-950.07,0.00016438,2]
[334885025,1723626666038,-500.0,0.00016438,2]
[334885027,1723626666048,-988.37,0.00016438,2]
[334885029,1723626666057,-4220.98,0.00016438,2]
[334885031,1723626666067,-500.0,0.00016438,2]
[334885033,1723626666076,-500.0,0.00016438,2]
[334885035,1723626666086,-938.85,0.00016438,2]
[334885037,1723626666095,-2942.22,0.00016438,2]
[334885039,1723626666105,-500.0,0.00016438,2]
[334885041,1723626666115,-500.0,0.00016438,2]
[334885043,1723626666124,-500.0,0.00016438,2]
[334885046,1723626666135,-747.56,0.00016438,2]
[334885048,1723626666146,-4778.59,0.00016438,2]
[334885050,1723626666156,-597.87,0.00016438,2]
[334885052,1723626666167,-151.0,0.00016438,2]
[334885054,1723626666176,-151.0,0.00016438,2]
[334885056,1723626666188,-151.0,0.00016438,2]
[334885058,1723626666199,-500.0,0.00016451,2]
[334885060,1723626666209,-777.52,0.000165,2]
[334885063,1723626666221,-1000.0,0.000165,2]
[334885065,1723626666231,-532.62848536,0.00016532,2]
[334885067,1723626666242,-465.02852774,0.00016571,2]
[334885069,1723626666252,-703.43,0.00016712,2]
[334885071,1723626666262,-515.13,0.00016712,2]
[334885073,1723626666272,-594.72,0.00016712,2]
[334885075,1723626666283,-500.0,0.00016712,2]
[334885077,1723626666294,-759.96,0.00016712,2]
[334885080,1723626666304,-500.0,0.00016712,2]
[334885082,1723626666314,-500.0,0.00016712,2]
[334885084,1723626666326,-500.0,0.00016712,2]
[334885086,1723626666336,-500.0,0.00016712,2]
[334885088,1723626666346,-500.0,0.00016712,2]
[334885090,1723626666356,-267.7931782,0.00016712,2]
[334885092,1723626666366,-1569.85,0.00016712,2]
[334885094,1723626666376,-500.0,0.00016712,2]
[334885096,1723626666386,-500.0,0.00016712,2]
[334885098,1723626666396,-500.0,0.00016712,2]
[334885100,1723626666405,-700.2,0.00016712,2]
[334885102,1723626666417,-500.0,0.00016712,2]
[334885104,1723626666430,-675.46,0.00016712,2]
[334885106,1723626666440,-824.21,0.00016712,2]
[334885108,1723626666450,-500.0,0.00016712,2]
[334885110,1723626666459,-1149.1,0.00016712,2]
[334885112,1723626666470,-1040.93,0.00016712,2]
[334885114,1723626666479,-500.0,0.00016712,2]
[334885116,1723626666488,-500.0,0.00016712,2]
[334885118,1723626666499,-500.0,0.00016712,2]
[334885120,1723626666510,-568.29,0.00016712,2]
[334885122,1723626666521,-500.0,0.00016712,2]
[334885124,1723626666532,-500.0,0.00016712,2]
[334885126,1723626666544,-623.16,0.00016712,2]
[334885128,1723626666554,-673.6,0.00016712,2]
[334885131,1723626666564,-639.99,0.00016712,2]
[334885133,1723626666574,-500.0,0.00016712,2]
[334885135,1723626666583,-500.0,0.00016712,2]
[334885137,1723626666593,-987.96,0.00016712,2]
[334885139,1723626666605,-500.0,0.00016712,2]
[334885141,1723626666615,-500.0,0.00016712,2]
[334885143,1723626666625,-672.95,0.00016712,2]
[334885145,1723626666634,-500.0,0.00016712,2]
[334885147,1723626666643,-803.27,0.00016712,2]
[334885149,1723626666654,-553.37,0.00016712,2]
[334885151,1723626666664,-720.6,0.00016712,2]
[334885153,1723626666673,-1840.02,0.00016712,2]
[334885155,1723626666683,-500.0,0.00016712,2]
[334885157,1723626666693,-500.0,0.00016712,2]
[334885159,1723626666702,-2032.76,0.00016712,2]
[334885161,1723626666712,-552.54,0.00016712,2]
[334885163,1723626666721,-657.65,0.00016712,2]
[334885165,1723626666731,-873.31,0.00016712,2]
[334885167,1723626666741,-13404.77,0.00016712,2]
[334885169,1723626666752,-741.21,0.00016712,2]
[334885171,1723626666761,-500.0,0.00016712,2]
[334885173,1723626666771,-873.89,0.00016712,2]
[334885175,1723626666781,-703.76,0.00016712,2]
[334885177,1723626666791,-950.07,0.00016712,2]
[334885179,1723626666801,-500.0,0.00016712,2]
[334885181,1723626666810,-988.37,0.00016712,2]
[334885183,1723626666820,-4220.98,0.00016712,2]
[334885185,1723626666830,-500.0,0.00016712,2]
[334885187,1723626666839,-500.0,0.00016712,2]
[334885189,1723626666850,-938.85,0.00016712,2]
[334885191,1723626666860,-2942.22,0.00016712,2]
[334885194,1723626666869,-500.0,0.00016712,2]
[334885196,1723626666880,-500.0,0.00016712,2]
[334885198,1723626666890,-500.0,0.00016712,2]
[334885200,1723626666900,-747.56,0.00016712,2]
[334885202,1723626666909,-4778.59,0.00016712,2]
[334885204,1723626666919,-597.87,0.00016712,2]
[334885206,1723626666929,-160.0,0.00016725,3]
[334885208,1723626666938,-150.0,0.00016868,2]
[334885210,1723626666948,-408.51467335,0.00016968,2]
[334885212,1723626666958,-790.0,0.00016977,2]
[334885214,1723626666968,-150.0,0.00016986,2]
[334885216,1723626666977,-703.43,0.00016986,2]
[334885219,1723626666989,-515.13,0.00016986,2]
[334885221,1723626666999,-594.72,0.00016986,2]
[334885223,1723626667010,-500.0,0.00016986,2]
[334885225,1723626667021,-759.96,0.00016986,2]
[334885227,1723626667033,-500.0,0.00016986,2]
[334885229,1723626667043,-500.0,0.00016986,2]
[334885231,1723626667052,-151.0,0.00016986,2]
[334885234,1723626667063,-151.0,0.00016986,2]
[334885236,1723626667072,-152.632976,0.00016986,2]
[334885238,1723626667083,-500.0,0.00016986,2]
[334885240,1723626667094,-500.0,0.00016986,2]
[334885242,1723626667105,-500.0,0.00016986,2]
[334885244,1723626667115,-151.0,0.00016986,2]
[334885246,1723626667127,-1783.97391,0.00016986,2]
[334885248,1723626667138,-1783.97391,0.00016986,2]
[334885251,1723626667149,-1569.85,0.00016986,2]
[334885253,1723626667161,-500.0,0.00016986,2]
[334885255,1723626667171,-500.0,0.00016986,2]
[334885257,1723626667181,-500.0,0.00016986,2]
[334885259,1723626667193,-700.2,0.00016986,2]
[334885261,1723626667203,-500.0,0.00016986,2]
[334885263,1723626667213,-675.46,0.00016986,2]
[334885265,1723626667223,-824.21,0.00016986,2]
[334885276,1723626667233,-500.0,0.00016986,2]
[334885278,1723626667332,-1149.1,0.00016986,2]
[334885280,1723626667342,-1040.93,0.00016986,2]
[334885282,1723626667352,-500.0,0.00016986,2]
[334885284,1723626667361,-151.0,0.00016986,2]
[334885286,1723626667371,-585.39320816,0.00016986,2]
[334885289,1723626667381,-500.0,0.00016986,2]
[334885290,1723626667390,-568.29,0.00016986,2]
[334885292,1723626667400,-500.0,0.00016986,2]
[334885295,1723626667412,-716.309019,0.00016986,2]
[334885297,1723626667427,-716.309019,0.00016986,2]
[334885299,1723626667438,-500.0,0.00016986,2]
[334885301,1723626667450,-623.16,0.00016986,2]
[334885303,1723626667462,-617.769582,0.00016986,2]
[334885306,1723626667473,-673.6,0.00016986,2]
[334885308,1723626667484,-617.769582,0.00016986,2]
[334885310,1723626667498,-639.99,0.00016986,2]
[334885312,1723626667510,-151.0,0.00016986,2]
[334885314,1723626667521,-500.0,0.00016986,2]
[334885316,1723626667531,-449.188265,0.00016986,2]
[334885318,1723626667540,-500.0,0.00016986,2]
[334885320,1723626667550,-151.0,0.00016986,2]
[334885322,1723626667560,-449.188265,0.00016986,2]
[334885324,1723626667571,-987.96,0.00016986,2]
[334885326,1723626667583,-500.0,0.00016986,2]
[334885328,1723626667596,-500.0,0.00016986,2]
[334885331,1723626667607,-672.95,0.00016986,2]
[334885333,1723626667619,-500.0,0.00016986,2]
[334885335,1723626667629,-803.27,0.00016986,2]
[334885337,1723626667641,-553.37,0.00016986,2]
[334885339,1723626667651,-720.6,0.00016986,2]
[334885341,1723626667662,-1840.02,0.00016986,2]
[334885343,1723626667671,-500.0,0.00016986,2]
[334885345,1723626667681,-500.0,0.00016986,2]
[334885347,1723626667691,-2032.76,0.00016986,2]
[334885349,1723626667701,-552.54,0.00016986,2]
[334885351,1723626667711,-657.65,0.00016986,2]
[334885353,1723626667722,-873.31,0.00016986,2]
[334885355,1723626667733,-13404.77,0.00016986,2]
[334885357,1723626667743,-741.21,0.00016986,2]
[334885359,1723626667753,-500.0,0.00016986,2]
[334885361,1723626667763,-873.89,0.00016986,2]
[334885363,1723626667773,-703.76,0.00016986,2]
[334885365,1723626667784,-950.07,0.00016986,2]
[334885367,1723626667795,-500.0,0.00016986,2]
[334885369,1723626667806,-988.37,0.00016986,2]
[334885371,1723626667817,-4220.98,0.00016986,2]
[334885374,1723626667827,-500.0,0.00016986,2]
[334885376,1723626667838,-500.0,0.00016986,2]
[334885378,1723626667850,-938.85,0.00016986,2]
[334885380,1723626667861,-2942.22,0.00016986,2]
[334885382,1723626667870,-57.88815746,0.00016986,2]
[334885420,1723626668231,-898.15627799,7.923e-05,2]
[334885422,1723626668240,-104.90372876,7.958e-05,2]
[334885424,1723626668251,-76.46115574,7.958e-05,2]
[334885426,1723626668260,-189.98027671,9.296e-05,2]
[334885428,1723626668270,-183.17040488,9.297e-05,2]
[334885430,1723626668280,-500.0,0.00013698,2]
[334885432,1723626668289,-500.0,0.00013698,2]
[334885434,1723626668299,-504.75162347,0.00013972,2]
[334885436,1723626668309,-500.0,0.00014246,2]
[334885438,1723626668318,-500.0,0.0001452,2]
[334885440,1723626668330,-500.0,0.00014794,2]
[334885443,1723626668342,-1325.3,0.0001589,2]
[334885445,1723626668351,-1325.3,0.00016164,2]
[334885447,1723626668361,-1325.3,0.00016438,2]
[334885449,1723626668370,-1325.3,0.00016712,2]
[334885451,1723626668381,-442.11184254,0.00016986,2]
[334885453,1723626668392,-500.0,0.00016986,2]
[334885455,1723626668403,-500.0,0.00016986,2]
[334885457,1723626668415,-747.56,0.00016986,2]
[334885459,1723626668431,-4778.59,0.00016986,2]
[334885461,1723626668440,-597.87,0.00016986,2]
[334885464,1723626668451,-186.748546,0.00016986,2]
[334885466,1723626668463,-1325.3,0.00016986,2]
[334885468,1723626668474,-154.76012181,0.00017,2]
[334885470,1723626668483,-1000.0,0.00017,2]
[334885472,1723626668496,-160.0,0.00017237,4]
[334885474,1723626668506,-703.43,0.0001726,2]
[334885476,1723626668516,-515.13,0.0001726,2]
[334885478,1723626668526,-594.72,0.0001726,2]
[334885480,1723626668537,-151.0,0.0001726,2]
[334885482,1723626668548,-151.0,0.0001726,2]
[334885484,1723626668559,-500.0,0.0001726,2]
[334885486,1723626668570,-151.0,0.0001726,2]
[334885488,1723626668581,-151.0,0.0001726,2]
[334885490,1723626668592,-759.96,0.0001726,2]
[334885492,1723626668602,-151.0,0.0001726,2]
[334885495,1723626668614,-500.0,0.0001726,2]
[334885497,1723626668623,-299.783418,0.0001726,2]
[334885499,1723626668634,-500.0,0.0001726,2]
[334885501,1723626668644,-500.0,0.0001726,2]
[334885503,1723626668655,-500.0,0.0001726,2]
[334885505,1723626668665,-500.0,0.0001726,2]
[334885507,1723626668675,-1569.85,0.0001726,2]
[334885509,1723626668689,-456.25284929,0.0001726,2]
[334885511,1723626668700,-500.0,0.0001726,2]
[334885513,1723626668712,-500.0,0.0001726,2]
[334885515,1723626668723,-700.2,0.0001726,2]
[334885517,1723626668741,-500.0,0.0001726,2]
[334885519,1723626668750,-675.46,0.0001726,2]
[334885521,1723626668760,-824.21,0.0001726,2]
[334885523,1723626668769,-500.0,0.0001726,2]
[334885525,1723626668779,-1149.1,0.0001726,2]
[334885527,1723626668788,-1040.93,0.0001726,2]
[334885529,1723626668798,-620.10634693,0.0001726,2]
[334885531,1723626668807,-500.0,0.0001726,2]
[334885533,1723626668816,-568.29,0.0001726,2]
[334885535,1723626668826,-500.0,0.0001726,2]
[334885537,1723626668836,-500.0,0.0001726,2]
[334885539,1723626668845,-623.16,0.0001726,2]
[334885541,1723626668854,-673.6,0.0001726,2]
[334885542,1723626668864,-639.99,0.0001726,2]
[334885544,1723626668874,-500.0,0.0001726,2]
[334885546,1723626668884,-500.0,0.0001726,2]
[334885548,1723626668893,-987.96,0.0001726,2]
[334885550,1723626668903,-500.0,0.0001726,2]
[334885552,1723626668912,-500.0,0.0001726,2]
[334885554,1723626668922,-672.95,0.0001726,2]
[334885556,1723626668932,-500.0,0.0001726,2]
[334885558,1723626668941,-803.27,0.0001726,2]
[334885560,1723626668951,-553.37,0.0001726,2]
[334885562,1723626668961,-720.6,0.0001726,2]
[334885564,1723626668970,-1840.02,0.0001726,2]
[334885566,1723626668980,-500.0,0.0001726,2]
[334885568,1723626668989,-500.0,0.0001726,2]
[334885570,1723626668999,-2032.76,0.0001726,2]
[334885572,1723626669009,-552.54,0.0001726,2]
[334885574,1723626669018,-657.65,0.0001726,2]
[334885576,1723626669028,-873.31,0.0001726,2]
[334885586,1723626669038,-13404.77,0.0001726,2]
[334885588,1723626669138,-741.21,0.0001726,2]
[334885590,1723626669149,-500.0,0.0001726,2]
[334885592,1723626669159,-873.89,0.0001726,2]
[334885594,1723626669169,-703.76,0.0001726,2]
[334885596,1723626669179,-151.0,0.0001726,2]
[334885598,1723626669189,-151.0,0.0001726,2]
[334885600,1723626669199,-950.07,0.0001726,2]
[334885602,1723626669209,-500.0,0.0001726,2]
[334885604,1723626669219,-988.37,0.0001726,2]
[334885606,1723626669229,-500.0,0.0001726,2]
[334885608,1723626669239,-4220.98,0.0001726,2]
[334885610,1723626669249,-1416.324261,0.0001726,2]
[334885612,1723626669259,-500.0,0.0001726,2]
[334885614,1723626669271,-1416.324261,0.0001726,2]
[334885616,1723626669281,-938.85,0.0001726,2]
[334885618,1723626669293,-2942.22,0.0001726,2]
[334885620,1723626669303,-500.0,0.0001726,2]
[334885622,1723626669313,-500.0,0.0001726,2]
[334885624,1723626669324,-500.0,0.0001726,2]
[334885626,1723626669334,-747.56,0.0001726,2]
[334885628,1723626669344,-4778.59,0.0001726,2]
[334885630,1723626669353,-597.87,0.0001726,2]
[334885632,1723626669364,-1325.3,0.0001726,2]
[334885634,1723626669375,-500.0,0.00017273,2]
[334885636,1723626669385,-400.62453151,0.00017346,2]
[334885638,1723626669396,-465.00142639,0.00017399,2]
[334885640,1723626669405,-1000.0,0.000175,2]
[334885642,1723626669415,-151.0,0.00017534,2]
[334885643,1723626669429,-229.326224,0.00017534,2]
[334885644,1723626669439,-703.43,0.00017534,2]
[334885645,1723626669449,-229.326224,0.00017534,2]
[334885646,1723626669459,-151.0,0.00017534,2]
[334885647,1723626669470,-515.13,0.00017534,2]
[334885648,1723626669480,-594.72,0.00017534,2]
[334885649,1723626669489,-264.26783463,0.00017534,2]
[334885650,1723626669499,-759.96,0.00017534,2]
[334885651,1723626669510,-500.0,0.00017534,2]
[334885652,1723626669520,-308.8488512,0.00017534,2]
[334885653,1723626669531,-500.0,0.00017534,2]
[334885654,1723626669545,-500.0,0.00017534,2]
[334885655,1723626669555,-500.0,0.00017534,2]
[334885656,1723626669566,-1569.85,0.00017534,2]
[334885657,1723626669575,-500.0,0.00017534,2]